Workbook

Sheet Foglio1
A1: CALCOLO SANZIONI SCA AI SENSI DELL'ART. 24 COMMA 2 e 3 DEL d.P.R.. 380/2001
B2: =B3 -> 2023-01-01 | D2: =D3 -> 2023-01-09T09:47:22
B3: 2023-01-01 | D3: 2023-01-09T09:47:22
B4: Inserire la data dopo il 15o GIORNO dall'ultimazione dei lavori di finitura dell'intervento e/o titoli edilizi | D4: Inserire la data della presentazione della SCA
B5: =IF(fData(B3)=FALSE,"ATTENZIONE DATA NON VALIDA","DATA INSERITA CORRETTA") -> DATA INSERITA CORRETTA | D5: =IF(fData(D3)=FALSE,"ATTENZIONE DATA NON VALIDA","DATA INSERITA CORRETTA") -> DATA INSERITA CORRETTA
C7: Computo della sanzione amministrativa
C8: VALORE CALCOLATO | D8: =IF(B19<1,0,VLOOKUP(B19,Foglio2!A2:D367,4)) -> 77.1849711
C9: VALORE ARRONTONDATO | D9: =MROUND(D8,1) -> 77
C11: Rapporto finale
C12: Calcolo giorni trascorsi | D12: =B19 -> 8
C13: Calcolo mesi trascorsi | D13: =B19/30.4167 -> 0.2630134104
C14: Calcolo settimane trascorse | D14: =B19/7 -> 1.142857143
C15: Calcolo anni trascorsi | D15: =B19*0.00273973 -> 0.02191784
C16: Sanzione calcolata | D16: =D8 -> 77.1849711
C17: Sanzione calcolata arrontondata | D17: =D9 -> 77
B18: =IF(D12=0,"Non ci sono Sanzioni da versare",IF(D12<0,"ATTENZIONE INCONGRUENZA: La data della presentazione della SCA è minore della data del titolo edilizio",IF(D12>0,"Ci sono Sanzioni da versare, pari ad € " & D17))) -> Ci sono Sanzioni da versare, pari ad € 77
B19: =_xlfn.DAYS(D3,B3) -> 8
B20: =B5 -> DATA INSERITA CORRETTA | D20: =D5 -> DATA INSERITA CORRETTA
B21: =ISERR(D12) -> FALSE

Sheet Foglio2 (hidden)
A1: Giorni | B1: Calcolo aliquota | C1: Incremento | D1: Valore
A2: 1 | B2: =(K$3/K$2)*A2 -> 0.8940568475 | C2: =(B2*A2)/K$2 -> 0.002310224412 | D2: =77+C2 -> 77.00231022 | H2: 77 | I2: 464 | K2: =I2-H2 -> 387
A3: 2 | B3: =(K$2/K$3)*A3 -> 2.23699422 | C3: 0.01156069364 | D3: 77.01156069 | H3: 19 | I3: 365 | K3: =I3-H3 -> 346
A4: 3 | B4: 3.355491329 | C4: 0.02601156069 | D4: 77.02601156
A5: 4 | B5: 4.473988439 | C5: 0.04624277457 | D5: 77.04624277
A6: 5 | B6: 5.592485549 | C6: 0.07225433526 | D6: 77.07225434
A7: 6 | B7: 6.710982659 | C7: 0.1040462428 | D7: 77.10404624
A8: 7 | B8: 7.829479769 | C8: 0.1416184971 | D8: 77.1416185
A9: 8 | B9: 8.947976879 | C9: 0.1849710983 | D9: 77.1849711
A10: 9 | B10: 10.06647399 | C10: 0.2341040462 | D10: 77.23410405
A11: 10 | B11: 11.1849711 | C11: 0.289017341 | D11: 77.28901734
A12: 11 | B12: 12.30346821 | C12: 0.3497109827 | D12: 77.34971098
A13: 12 | B13: 13.42196532 | C13: 0.4161849711 | D13: 77.41618497
A14: 13 | B14: 14.54046243 | C14: 0.4884393064 | D14: 77.48843931
A15: 14 | B15: 15.65895954 | C15: 0.5664739884 | D15: 77.56647399
A16: 15 | B16: 16.77745665 | C16: 0.6502890173 | D16: 77.65028902
A17: 16 | B17: 17.89595376 | C17: 0.7398843931 | D17: 77.73988439
A18: 17 | B18: 19.01445087 | C18: 0.8352601156 | D18: 77.83526012
A19: 18 | B19: 20.13294798 | C19: 0.936416185 | D19: 77.93641618
A20: 19 | B20: 21.25144509 | C20: 1.043352601 | D20: 78.0433526
A21: 20 | B21: 22.3699422 | C21: 1.156069364 | D21: 78.15606936
A22: 21 | B22: 23.48843931 | C22: 1.274566474 | D22: 78.27456647
A23: 22 | B23: 24.60693642 | C23: 1.398843931 | D23: 78.39884393
A24: 23 | B24: 25.72543353 | C24: 1.528901734 | D24: 78.52890173
A25: 24 | B25: 26.84393064 | C25: 1.664739884 | D25: 78.66473988
A26: 25 | B26: 27.96242775 | C26: 1.806358382 | D26: 78.80635838
A27: 26 | B27: 29.08092486 | C27: 1.953757225 | D27: 78.95375723
A28: 27 | B28: 30.19942197 | C28: 2.106936416 | D28: 79.10693642
A29: 28 | B29: 31.31791908 | C29: 2.265895954 | D29: 79.26589595
A30: 29 | B30: 32.43641618 | C30: 2.430635838 | D30: 79.43063584
A31: 30 | B31: 33.55491329 | C31: 2.601156069 | D31: 79.60115607
A32: 31 | B32: 34.6734104 | C32: 2.777456647 | D32: 79.77745665
A33: 32 | B33: 35.79190751 | C33: 2.959537572 | D33: 79.95953757
A34: 33 | B34: 36.91040462 | C34: 3.147398844 | D34: 80.14739884
A35: 34 | B35: 38.02890173 | C35: 3.341040462 | D35: 80.34104046
A36: 35 | B36: 39.14739884 | C36: 3.540462428 | D36: 80.54046243
A37: 36 | B37: 40.26589595 | C37: 3.74566474 | D37: 80.74566474
A38: 37 | B38: 41.38439306 | C38: 3.956647399 | D38: 80.9566474
A39: 38 | B39: 42.50289017 | C39: 4.173410405 | D39: 81.1734104
A40: 39 | B40: 43.62138728 | C40: 4.395953757 | D40: 81.39595376
A41: 40 | B41: 44.73988439 | C41: 4.624277457 | D41: 81.62427746
A42: 41 | B42: 45.8583815 | C42: 4.858381503 | D42: 81.8583815
A43: 42 | B43: 46.97687861 | C43: 5.098265896 | D43: 82.0982659
A44: 43 | B44: 48.09537572 | C44: 5.343930636 | D44: 82.34393064
A45: 44 | B45: 49.21387283 | C45: 5.595375723 | D45: 82.59537572
A46: 45 | B46: 50.33236994 | C46: 5.852601156 | D46: 82.85260116
A47: 46 | B47: 51.45086705 | C47: 6.115606936 | D47: 83.11560694
A48: 47 | B48: 52.56936416 | C48: 6.384393064 | D48: 83.38439306
A49: 48 | B49: 53.68786127 | C49: 6.658959538 | D49: 83.65895954
A50: 49 | B50: 54.80635838 | C50: 6.939306358 | D50: 83.93930636
A51: 50 | B51: 55.92485549 | C51: 7.225433526 | D51: 84.22543353
A52: 51 | B52: 57.0433526 | C52: 7.51734104 | D52: 84.51734104
A53: 52 | B53: 58.16184971 | C53: 7.815028902 | D53: 84.8150289
A54: 53 | B54: 59.28034682 | C54: 8.11849711 | D54: 85.11849711
A55: 54 | B55: 60.39884393 | C55: 8.427745665 | D55: 85.42774566
A56: 55 | B56: 61.51734104 | C56: 8.742774566 | D56: 85.74277457
A57: 56 | B57: 62.63583815 | C57: 9.063583815 | D57: 86.06358382
A58: 57 | B58: 63.75433526 | C58: 9.39017341 | D58: 86.39017341
A59: 58 | B59: 64.87283237 | C59: 9.722543353 | D59: 86.72254335
A60: 59 | B60: 65.99132948 | C60: 10.06069364 | D60: 87.06069364
A61: 60 | B61: 67.10982659 | C61: 10.40462428 | D61: 87.40462428
A62: 61 | B62: 68.2283237 | C62: 10.75433526 | D62: 87.75433526
A63: 62 | B63: 69.34682081 | C63: 11.10982659 | D63: 88.10982659
A64: 63 | B64: 70.46531792 | C64: 11.47109827 | D64: 88.47109827
A65: 64 | B65: 71.58381503 | C65: 11.83815029 | D65: 88.83815029
A66: 65 | B66: 72.70231214 | C66: =(B66*A66)/K$2 -> 12.21098266 | D66: 89.21098266
A67: 66 | B67: =(K$2/K$3)*A67 -> 73.82080925 | C67: 12.58959538 | D67: =77+C67 -> 89.58959538
A68: 67 | B68: 74.93930636 | C68: 12.97398844 | D68: 89.97398844
A69: 68 | B69: 76.05780347 | C69: 13.36416185 | D69: 90.36416185
A70: 69 | B70: 77.17630058 | C70: 13.76011561 | D70: 90.76011561
A71: 70 | B71: 78.29479769 | C71: 14.16184971 | D71: 91.16184971
A72: 71 | B72: 79.4132948 | C72: 14.56936416 | D72: 91.56936416
A73: 72 | B73: 80.53179191 | C73: 14.98265896 | D73: 91.98265896
A74: 73 | B74: 81.65028902 | C74: 15.4017341 | D74: 92.4017341
A75: 74 | B75: 82.76878613 | C75: 15.8265896 | D75: 92.8265896
A76: 75 | B76: 83.88728324 | C76: 16.25722543 | D76: 93.25722543
A77: 76 | B77: 85.00578035 | C77: 16.69364162 | D77: 93.69364162
A78: 77 | B78: 86.12427746 | C78: 17.13583815 | D78: 94.13583815
A79: 78 | B79: 87.24277457 | C79: 17.58381503 | D79: 94.58381503
A80: 79 | B80: 88.36127168 | C80: 18.03757225 | D80: 95.03757225
A81: 80 | B81: 89.47976879 | C81: 18.49710983 | D81: 95.49710983
A82: 81 | B82: 90.5982659 | C82: 18.96242775 | D82: 95.96242775
A83: 82 | B83: 91.71676301 | C83: 19.43352601 | D83: 96.43352601
A84: 83 | B84: 92.83526012 | C84: 19.91040462 | D84: 96.91040462
A85: 84 | B85: 93.95375723 | C85: 20.39306358 | D85: 97.39306358
A86: 85 | B86: 95.07225434 | C86: 20.88150289 | D86: 97.88150289
A87: 86 | B87: 96.19075145 | C87: 21.37572254 | D87: 98.37572254
A88: 87 | B88: 97.30924855 | C88: 21.87572254 | D88: 98.87572254
A89: 88 | B89: 98.42774566 | C89: 22.38150289 | D89: 99.38150289
A90: 89 | B90: 99.54624277 | C90: 22.89306358 | D90: 99.89306358
A91: 90 | B91: 100.6647399 | C91: 23.41040462 | D91: 100.4104046
A92: 91 | B92: 101.783237 | C92: 23.93352601 | D92: 100.933526
A93: 92 | B93: 102.9017341 | C93: 24.46242775 | D93: 101.4624277
A94: 93 | B94: 104.0202312 | C94: 24.99710983 | D94: 101.9971098
A95: 94 | B95: 105.1387283 | C95: 25.53757225 | D95: 102.5375723
A96: 95 | B96: 106.2572254 | C96: 26.08381503 | D96: 103.083815
A97: 96 | B97: 107.3757225 | C97: 26.63583815 | D97: 103.6358382
A98: 97 | B98: 108.4942197 | C98: 27.19364162 | D98: 104.1936416
A99: 98 | B99: 109.6127168 | C99: 27.75722543 | D99: 104.7572254
A100: 99 | B100: 110.7312139 | C100: 28.3265896 | D100: 105.3265896
A101: 100 | B101: 111.849711 | C101: 28.9017341 | D101: 105.9017341
A102: 101 | B102: 112.9682081 | C102: 29.48265896 | D102: 106.482659
A103: 102 | B103: 114.0867052 | C103: 30.06936416 | D103: 107.0693642
A104: 103 | B104: 115.2052023 | C104: 30.66184971 | D104: 107.6618497
A105: 104 | B105: 116.3236994 | C105: 31.26011561 | D105: 108.2601156
A106: 105 | B106: 117.4421965 | C106: 31.86416185 | D106: 108.8641618
A107: 106 | B107: 118.5606936 | C107: 32.47398844 | D107: 109.4739884
A108: 107 | B108: 119.6791908 | C108: 33.08959538 | D108: 110.0895954
A109: 108 | B109: 120.7976879 | C109: 33.71098266 | D109: 110.7109827
A110: 109 | B110: 121.916185 | C110: 34.33815029 | D110: 111.3381503
A111: 110 | B111: 123.0346821 | C111: 34.97109827 | D111: 111.9710983
A112: 111 | B112: 124.1531792 | C112: 35.60982659 | D112: 112.6098266
A113: 112 | B113: 125.2716763 | C113: 36.25433526 | D113: 113.2543353
A114: 113 | B114: 126.3901734 | C114: 36.90462428 | D114: 113.9046243
A115: 114 | B115: 127.5086705 | C115: 37.56069364 | D115: 114.5606936
A116: 115 | B116: 128.6271676 | C116: 38.22254335 | D116: 115.2225434
A117: 116 | B117: 129.7456647 | C117: 38.89017341 | D117: 115.8901734
A118: 117 | B118: 130.8641618 | C118: 39.56358382 | D118: 116.5635838
A119: 118 | B119: 131.982659 | C119: 40.24277457 | D119: 117.2427746
A120: 119 | B120: 133.1011561 | C120: 40.92774566 | D120: 117.9277457
A121: 120 | B121: 134.2196532 | C121: 41.61849711 | D121: 118.6184971
A122: 121 | B122: 135.3381503 | C122: 42.3150289 | D122: 119.3150289
A123: 122 | B123: 136.4566474 | C123: 43.01734104 | D123: 120.017341
A124: 123 | B124: 137.5751445 | C124: 43.72543353 | D124: 120.7254335
A125: 124 | B125: 138.6936416 | C125: 44.43930636 | D125: 121.4393064
A126: 125 | B126: 139.8121387 | C126: 45.15895954 | D126: 122.1589595
A127: 126 | B127: 140.9306358 | C127: 45.88439306 | D127: 122.8843931
A128: 127 | B128: 142.0491329 | C128: 46.61560694 | D128: 123.6156069
A129: 128 | B129: 143.1676301 | C129: 47.35260116 | D129: 124.3526012
A130: 129 | B130: 144.2861272 | C130: =(B130*A130)/K$2 -> 48.09537572 | D130: 125.0953757
A131: 130 | B131: =(K$2/K$3)*A131 -> 145.4046243 | C131: 48.84393064 | D131: =77+C131 -> 125.8439306
A132: 131 | B132: 146.5231214 | C132: 49.5982659 | D132: 126.5982659
A133: 132 | B133: 147.6416185 | C133: 50.3583815 | D133: 127.3583815
A134: 133 | B134: 148.7601156 | C134: 51.12427746 | D134: 128.1242775
A135: 134 | B135: 149.8786127 | C135: 51.89595376 | D135: 128.8959538
A136: 135 | B136: 150.9971098 | C136: 52.6734104 | D136: 129.6734104
A137: 136 | B137: 152.1156069 | C137: 53.4566474 | D137: 130.4566474
A138: 137 | B138: 153.234104 | C138: 54.24566474 | D138: 131.2456647
A139: 138 | B139: 154.3526012 | C139: 55.04046243 | D139: 132.0404624
A140: 139 | B140: 155.4710983 | C140: 55.84104046 | D140: 132.8410405
A141: 140 | B141: 156.5895954 | C141: 56.64739884 | D141: 133.6473988
A142: 141 | B142: 157.7080925 | C142: 57.45953757 | D142: 134.4595376
A143: 142 | B143: 158.8265896 | C143: 58.27745665 | D143: 135.2774566
A144: 143 | B144: 159.9450867 | C144: 59.10115607 | D144: 136.1011561
A145: 144 | B145: 161.0635838 | C145: 59.93063584 | D145: 136.9306358
A146: 145 | B146: 162.1820809 | C146: 60.76589595 | D146: 137.765896
A147: 146 | B147: 163.300578 | C147: 61.60693642 | D147: 138.6069364
A148: 147 | B148: 164.4190751 | C148: 62.45375723 | D148: 139.4537572
A149: 148 | B149: 165.5375723 | C149: 63.30635838 | D149: 140.3063584
A150: 149 | B150: 166.6560694 | C150: 64.16473988 | D150: 141.1647399
A151: 150 | B151: 167.7745665 | C151: 65.02890173 | D151: 142.0289017
A152: 151 | B152: 168.8930636 | C152: 65.89884393 | D152: 142.8988439
A153: 152 | B153: 170.0115607 | C153: 66.77456647 | D153: 143.7745665
A154: 153 | B154: 171.1300578 | C154: 67.65606936 | D154: 144.6560694
A155: 154 | B155: 172.2485549 | C155: 68.5433526 | D155: 145.5433526
A156: 155 | B156: 173.367052 | C156: 69.43641618 | D156: 146.4364162
A157: 156 | B157: 174.4855491 | C157: 70.33526012 | D157: 147.3352601
A158: 157 | B158: 175.6040462 | C158: 71.23988439 | D158: 148.2398844
A159: 158 | B159: 176.7225434 | C159: 72.15028902 | D159: 149.150289
A160: 159 | B160: 177.8410405 | C160: 73.06647399 | D160: 150.066474
A161: 160 | B161: 178.9595376 | C161: 73.98843931 | D161: 150.9884393
A162: 161 | B162: 180.0780347 | C162: 74.91618497 | D162: 151.916185
A163: 162 | B163: 181.1965318 | C163: 75.84971098 | D163: 152.849711
A164: 163 | B164: 182.3150289 | C164: 76.78901734 | D164: 153.7890173
A165: 164 | B165: 183.433526 | C165: 77.73410405 | D165: 154.734104
A166: 165 | B166: 184.5520231 | C166: 78.6849711 | D166: 155.6849711
A167: 166 | B167: 185.6705202 | C167: 79.6416185 | D167: 156.6416185
A168: 167 | B168: 186.7890173 | C168: 80.60404624 | D168: 157.6040462
A169: 168 | B169: 187.9075145 | C169: 81.57225434 | D169: 158.5722543
A170: 169 | B170: 189.0260116 | C170: 82.54624277 | D170: 159.5462428
A171: 170 | B171: 190.1445087 | C171: 83.52601156 | D171: 160.5260116
A172: 171 | B172: 191.2630058 | C172: 84.51156069 | D172: 161.5115607
A173: 172 | B173: 192.3815029 | C173: 85.50289017 | D173: 162.5028902
A174: 173 | B174: 193.5 | C174: 86.5 | D174: 163.5
A175: 174 | B175: 194.6184971 | C175: 87.50289017 | D175: 164.5028902
A176: 175 | B176: 195.7369942 | C176: 88.51156069 | D176: 165.5115607
A177: 176 | B177: 196.8554913 | C177: 89.52601156 | D177: 166.5260116
A178: 177 | B178: 197.9739884 | C178: 90.54624277 | D178: 167.5462428
A179: 178 | B179: 199.0924855 | C179: 91.57225434 | D179: 168.5722543
A180: 179 | B180: 200.2109827 | C180: 92.60404624 | D180: 169.6040462
A181: 180 | B181: 201.3294798 | C181: 93.6416185 | D181: 170.6416185
A182: 181 | B182: 202.4479769 | C182: 94.6849711 | D182: 171.6849711
A183: 182 | B183: 203.566474 | C183: 95.73410405 | D183: 172.734104
A184: 183 | B184: 204.6849711 | C184: 96.78901734 | D184: 173.7890173
A185: 184 | B185: 205.8034682 | C185: 97.84971098 | D185: 174.849711
A186: 185 | B186: 206.9219653 | C186: 98.91618497 | D186: 175.916185
A187: 186 | B187: 208.0404624 | C187: 99.98843931 | D187: 176.9884393
A188: 187 | B188: 209.1589595 | C188: 101.066474 | D188: 178.066474
A189: 188 | B189: 210.2774566 | C189: 102.150289 | D189: 179.150289
A190: 189 | B190: 211.3959538 | C190: 103.2398844 | D190: 180.2398844
A191: 190 | B191: 212.5144509 | C191: 104.3352601 | D191: 181.3352601
A192: 191 | B192: 213.632948 | C192: 105.4364162 | D192: 182.4364162
A193: 192 | B193: 214.7514451 | C193: 106.5433526 | D193: 183.5433526
A194: 193 | B194: 215.8699422 | C194: =(B194*A194)/K$2 -> 107.6560694 | D194: 184.6560694
A195: 194 | B195: =(K$2/K$3)*A195 -> 216.9884393 | C195: 108.7745665 | D195: =77+C195 -> 185.7745665
A196: 195 | B196: 218.1069364 | C196: 109.8988439 | D196: 186.8988439
A197: 196 | B197: 219.2254335 | C197: 111.0289017 | D197: 188.0289017
A198: 197 | B198: 220.3439306 | C198: 112.1647399 | D198: 189.1647399
A199: 198 | B199: 221.4624277 | C199: 113.3063584 | D199: 190.3063584
A200: 199 | B200: 222.5809249 | C200: 114.4537572 | D200: 191.4537572
... 167 more rows
